fUST/lending_fUST_20250127
["ID","MTS","AMOUNT","RATE_DAILY","PERIOD"]
[350527111,1737946252873,-151.0,0.00022503,7]
[350527112,1737946252882,-151.0,0.00022503,7]
[350527113,1737946252891,-151.0,0.00022503,7]
[350527114,1737946252901,-151.0,0.00022503,7]
[350527115,1737946252910,-154.473769,0.00022503,7]
[350527116,1737946252919,-151.0,0.00022503,7]
[350527117,1737946252928,-108.83794809,0.00022503,7]
[350527118,1737946252940,-42.16205191,0.00022503,7]
[350527119,1737946252949,-151.0,0.00022503,7]
[350527120,1737946252958,-152.322171,0.00022503,7]
[350527121,1737946252967,-151.0,0.00022503,7]
[350527122,1737946252977,-233.41921,0.00022503,7]
[350527123,1737946252987,-151.0,0.00022503,7]
[350527124,1737946252997,-151.0,0.00022503,7]
[350527125,1737946253006,-151.0,0.00022503,7]
[350527126,1737946253015,-151.0,0.00022503,7]
[350527127,1737946253024,-151.0,0.00022503,7]
[350527128,1737946253034,-151.0,0.00022503,7]
[350527129,1737946253044,-151.0,0.00022503,7]
[350527130,1737946253053,-151.0,0.00022503,7]
[350527131,1737946253063,-2626.942952,0.00022503,7]
[350527132,1737946253072,-2046.63183386,0.00022503,7]
[350527133,1737946253084,-580.31111814,0.00022503,7]
[350527134,1737946253094,-151.0,0.00022503,7]
[350527135,1737946253103,-151.0,0.00022503,7]
[350527136,1737946253112,-2626.942952,0.00022503,7]
[350527137,1737946253121,-2626.942952,0.00022503,7]
[350527138,1737946253131,-151.0,0.00022503,7]
[350527139,1737946253140,-153.631999,0.00022503,7]
[350527140,1737946253149,-151.0,0.00022503,7]
[350527141,1737946253159,-178.86781,0.00022503,7]
[350527142,1737946253168,-80.07538512,0.00022503,7]
[350527143,1737946253186,-500.0,0.00018198,2]
[350527144,1737946253195,-70.92461488,0.00022503,7]
[350527145,1737946253205,-160.737734,0.00022503,7]
[350527146,1737946253214,-151.0,0.00022503,7]
[350527147,1737946253223,-151.0,0.00022503,7]
[350527148,1737946253233,-151.0,0.00022503,7]
[350527149,1737946253242,-151.0,0.00022503,7]
[350527150,1737946253252,-558.949412,0.00022503,7]
[350527151,1737946253261,-558.949412,0.00022503,7]
[350527152,1737946253270,-809.159563,0.00022503,7]
[350527153,1737946253279,-809.159563,0.00022503,7]
[350527154,1737946253289,-151.0,0.00022503,7]
[350527155,1737946253298,-151.0,0.00022503,7]
[350527156,1737946253307,-320.34534366,0.00022503,7]
[350527157,1737946253318,-808.25693834,0.00022503,7]
[350527158,1737946253327,-502.633472,0.00022503,7]
[350527159,1737946253337,-210.8905,0.00022503,7]
[350527160,1737946253346,-151.0,0.00022503,7]
[350527161,1737946253355,-151.0,0.00022503,7]
[350527162,1737946253364,-151.0,0.00022503,7]
[350527163,1737946253373,-151.0,0.00022503,7]
[350527164,1737946253383,-151.0,0.00022503,7]
[350527165,1737946253391,-747.129425,0.00022503,7]
[350527166,1737946253400,-747.129425,0.00022503,7]
[350527167,1737946253410,-1267.658286,0.00022503,7]
[350527168,1737946253419,-1267.658286,0.00022503,7]
[350527169,1737946253430,-268.894567,0.00022503,7]
[350527170,1737946253440,-1201.106047,0.00022503,7]
[350527171,1737946253449,-268.894567,0.00022503,7]
[350527172,1737946253459,-1201.106047,0.00022503,7]
[350527173,1737946253468,-643.185665,0.00022503,7]
[350527174,1737946253477,-643.185665,0.00022503,7]
[350527175,1737946253487,-1028.293023,0.00022503,7]
[350527176,1737946253496,-1028.293023,0.00022503,7]
[350527177,1737946253506,-336.865126,0.00022503,7]
[350527178,1737946253515,-112.07956721,0.00022503,7]
[350527179,1737946253527,-224.78555879,0.00022503,7]
[350527180,1737946253536,-169.156719,0.00022503,7]
[350527181,1737946253546,-169.156719,0.00022503,7]
[350527182,1737946253555,-897.026712,0.00022503,7]
[350527183,1737946253564,-897.026712,0.00022503,7]
[350527184,1737946253573,-601.522044,0.00022503,7]
[350527185,1737946253583,-601.522044,0.00022503,7]
[350527186,1737946253592,-151.0,0.00022503,7]
[350527187,1737946253601,-151.0,0.00022503,7]
[350527188,1737946253611,-151.0,0.00022503,7]
[350527189,1737946253620,-584.323886,0.00022503,7]
[350527190,1737946253629,-584.323886,0.00022503,7]
[350527191,1737946253639,-151.0,0.00022503,7]
[350527192,1737946253648,-296.42253,0.00022503,7]
[350527193,1737946253658,-736.236547,0.00022503,7]
[350527194,1737946253671,-736.236547,0.00022503,7]
[350527195,1737946253683,-2570.27192787,0.00022503,2]
[350527196,1737946253692,-1497.85691961,0.00022506,2]
[350527197,1737946253702,-151.0,0.00022509,7]
[350527198,1737946253712,-151.0,0.00022509,7]
[350527199,1737946253721,-151.0,0.00022509,7]
[350527200,1737946253732,-151.0,0.00022509,7]
[350527201,1737946253742,-151.0,0.00022509,7]
[350527202,1737946253752,-162.409664,0.00022509,7]
[350527203,1737946253762,-151.0,0.00022509,7]
[350527204,1737946253773,-151.0,0.00022509,7]
[350527205,1737946253782,-151.0,0.00022509,7]
[350527206,1737946253792,-151.0,0.00022509,7]
[350527207,1737946253801,-151.0,0.00022509,7]
[350527208,1737946253811,-151.0,0.00022509,7]
[350527209,1737946253821,-287.070371,0.00022509,7]
[350527210,1737946253830,-151.0,0.00022509,7]
[350527211,1737946253839,-151.0,0.00022509,7]
[350527212,1737946253848,-151.0,0.00022509,7]
[350527213,1737946253857,-151.0,0.00022509,7]
[350527214,1737946253867,-151.0,0.00022509,7]
[350527215,1737946253876,-151.0,0.00022509,7]
[350527216,1737946253885,-151.0,0.00022509,7]
[350527217,1737946253894,-151.0,0.00022509,7]
[350527218,1737946253903,-151.0,0.00022509,7]
[350527219,1737946253912,-2626.942952,0.00022509,7]
[350527220,1737946253922,-2626.942952,0.00022509,7]
[350527221,1737946253933,-2626.942952,0.00022509,7]
[350527222,1737946253943,-2626.942952,0.00022509,7]
[350527223,1737946253952,-2626.942952,0.00022509,7]
[350527224,1737946253962,-2626.942952,0.00022509,7]
[350527225,1737946253972,-2626.942952,0.00022509,7]
[350527226,1737946253982,-151.0,0.00022509,7]
[350527227,1737946253991,-151.0,0.00022509,7]
[350527228,1737946254000,-2626.942952,0.00022509,7]
[350527229,1737946254009,-151.0,0.00022509,7]
[350527230,1737946254019,-2626.942952,0.00022509,7]
[350527231,1737946254029,-151.0,0.00022509,7]
[350527232,1737946254039,-2626.942952,0.00022509,7]
[350527233,1737946254049,-151.0,0.00022509,7]
[350527234,1737946254059,-2626.942952,0.00022509,7]
[350527235,1737946254069,-151.0,0.00022509,7]
[350527236,1737946254079,-2626.942952,0.00022509,7]
[350527237,1737946254089,-151.0,0.00022509,7]
[350527238,1737946254098,-2626.942952,0.00022509,7]
[350527239,1737946254108,-2626.942962,0.00022509,7]
[350527240,1737946254118,-151.0,0.00022509,7]
[350527241,1737946254127,-275.834629,0.00022509,7]
[350527242,1737946254138,-155.661237,0.00022509,7]
[350527243,1737946254148,-247.32662,0.00022509,7]
[350527244,1737946254158,-151.0,0.00022509,7]
[350527245,1737946254167,-151.0,0.00022509,7]
[350527246,1737946254177,-558.949412,0.00022509,7]
[350527247,1737946254186,-151.0,0.00022509,7]
[350527248,1737946254196,-558.949412,0.00022509,7]
[350527249,1737946254205,-558.949412,0.00022509,7]
[350527250,1737946254215,-558.949412,0.00022509,7]
[350527251,1737946254225,-558.949412,0.00022509,7]
[350527252,1737946254235,-558.949412,0.00022509,7]
[350527253,1737946254244,-809.159563,0.00022509,7]
[350527254,1737946254253,-809.159563,0.00022509,7]
[350527255,1737946254263,-809.159563,0.00022509,7]
[350527256,1737946254272,-809.159563,0.00022509,7]
[350527257,1737946254282,-522.84330744,0.00022509,7]
[350527265,1737946349262,190.03,0.00010959,2]
[350527266,1737946359984,158.36,0.00010959,2]
[350527267,1737946370747,791.82,0.00010959,2]
[350527286,1737947153491,160.992843,0.00013973,2]
[350527287,1737947183039,430.25810456,0.00015016,2]
[350527288,1737947191414,430.25810456,0.00015016,2]
[350527292,1737947206945,200.6926653,0.00015048,2]
[350527295,1737947222948,200.6926653,0.00015048,2]
[350527296,1737947238288,200.6926653,0.00015048,2]
[350527297,1737947246175,168.79144278,0.00015048,2]
[350527298,1737947247129,-200.6926653,0.000152,2]
[350527299,1737947247150,-339.6297755,0.00015257,2]
[350527300,1737947255850,-2894.9028642,0.00015105,2]
[350527301,1737947255872,-2894.9028642,0.00015257,2]
[350527302,1737947255894,-308.58629578,0.00015376,2]
[350527303,1737947255916,-376.12755637,0.00016011,2]
[350527304,1737947255940,-173.5642137,0.00016474,2]
[350527305,1737947255963,-300.0,0.00016572,2]
[350527306,1737947255985,-502.26848744,0.00016573,2]
[350527307,1737947256014,-500.0,0.00016573,2]
[350527308,1737947256036,-352.19557857,0.00016573,2]
[350527309,1737947256058,-500.0,0.00016573,2]
[350527310,1737947256082,-1847.42,0.00016573,2]
[350527311,1737947256103,-1000.0,0.00016573,7]
[350527312,1737947256126,-956.13,0.00016573,2]
[350527313,1737947256148,-500.0,0.00016573,2]
[350527314,1737947256173,-1079.3,0.00016573,2]
[350527315,1737947256195,-500.0,0.00016573,2]
[350527316,1737947256216,-500.0,0.00016573,2]
[350527317,1737947256238,-500.0,0.00016573,2]
[350527318,1737947256264,-500.0,0.00016573,2]
[350527319,1737947256290,-500.0,0.00016573,2]
[350527320,1737947256315,-406.46708686,0.00016573,2]
[350527321,1737947256340,-500.0,0.00016573,2]
[350527322,1737947256365,-3227.99,0.00016573,2]
[350527323,1737947256387,-500.0,0.00016573,2]
[350527324,1737947256410,-500.0,0.00016573,2]
[350527325,1737947256435,-2180.64,0.00016573,2]
[350527326,1737947256458,-500.0,0.00016573,2]
[350527327,1737947256480,-500.0,0.00016574,2]
[350527328,1737947256506,-234.93022984,0.00016574,2]
[350527329,1737947256528,-500.0,0.00016574,2]
[350527330,1737947256552,-501.55639181,0.00016574,2]
[350527331,1737947256575,-500.0,0.00016574,2]
[350527332,1737947256598,-500.0,0.00016574,2]
[350527333,1737947256621,-500.0,0.00016574,2]
[350527334,1737947256766,-197.29885898,0.00016574,2]
[350527335,1737947256788,-500.0,0.00016574,2]
[350527336,1737947256810,-498.79280628,0.00016574,2]
[350527337,1737947256832,-500.0,0.00016574,2]
[350527338,1737947256854,-500.0,0.00016574,2]
[350527339,1737947256876,-500.0,0.00016574,2]
[350527340,1737947256898,-500.0,0.00016574,2]
[350527341,1737947256920,-500.0,0.00016574,2]
[350527342,1737947256942,-500.0,0.00016574,2]
[350527343,1737947256963,-500.0,0.00016574,2]
[350527344,1737947256988,-500.0,0.00016574,2]
[350527345,1737947257012,-500.0,0.00016574,2]
[350527346,1737947257036,-500.0,0.00016574,2]
[350527347,1737947257061,-500.0,0.00016574,2]
[350527348,1737947257082,-500.0,0.00016574,2]
[350527349,1737947257104,-500.0,0.00016574,2]
[350527350,1737947257125,-500.0,0.00016574,2]
[350527351,1737947257154,-500.0,0.00016574,2]
[350527352,1737947257176,-500.0,0.00016574,2]
[350527353,1737947257198,-500.0,0.00016574,2]
[350527354,1737947257219,-500.0,0.00016574,2]
[350527355,1737947257240,-500.0,0.00016574,2]
[350527356,1737947257263,-500.0,0.00016574,2]
[350527357,1737947257285,-500.0,0.00016574,2]
[350527358,1737947257307,-500.0,0.00016574,2]
[350527359,1737947257329,-370.22165324,0.00016574,2]
[350527360,1737947257352,-500.0,0.00016574,2]
[350527361,1737947257375,-500.0,0.00016574,2]
[350527362,1737947257397,-500.0,0.00016574,2]
[350527363,1737947257420,-500.0,0.00016574,2]
[350527364,1737947257443,-500.0,0.00016574,2]
[350527365,1737947257464,-500.0,0.00016574,2]
[350527366,1737947257486,-500.0,0.00016574,2]
[350527367,1737947257512,-500.0,0.00016574,2]
[350527368,1737947257536,-200.0,0.00016574,2]
[350527369,1737947257558,-500.0,0.00016574,2]
[350527370,1737947257581,-500.0,0.00016574,2]
[350527371,1737947257604,-500.0,0.00016574,2]
[350527372,1737947257629,-500.0,0.00016574,2]
[350527373,1737947257651,-500.0,0.00016574,2]
[350527374,1737947257673,-502.57495816,0.00016574,2]
[350527375,1737947257697,-500.0,0.00016574,2]
[350527376,1737947257720,-500.0,0.00016574,2]
[350527377,1737947257743,-500.0,0.00016574,2]
[350527378,1737947257770,-500.0,0.00016574,2]
[350527379,1737947257792,-500.0,0.00016574,2]
[350527380,1737947257815,-500.0,0.00016574,2]
[350527381,1737947257839,-500.0,0.00016574,2]
[350527382,1737947257865,-500.0,0.00016574,2]
[350527383,1737947257887,-500.0,0.00016574,2]
[350527384,1737947257910,-500.0,0.00016574,2]
[350527385,1737947257932,-500.0,0.00016574,2]
[350527386,1737947257954,-500.0,0.00016574,2]
[350527387,1737947257978,-500.0,0.00016574,2]
[350527388,1737947258002,-500.0,0.00016574,2]
[350527389,1737947258025,-500.0,0.00016574,2]
[350527390,1737947258049,-500.0,0.00016574,2]
[350527391,1737947258072,-500.0,0.00016574,2]
[350527392,1737947258094,-500.0,0.00016574,2]
[350527393,1737947258117,-500.0,0.00016574,2]
[350527394,1737947258138,-500.0,0.00016574,2]
[350527395,1737947258161,-500.64850314,0.00016574,2]
[350527396,1737947258184,-501.02586386,0.00016574,2]
[350527397,1737947258205,-500.0,0.00016574,2]
[350527398,1737947258228,-500.0,0.00016574,2]
[350527399,1737947258253,-500.0,0.00016574,2]
[350527400,1737947258277,-500.0,0.00016574,2]
[350527401,1737947258299,-500.0,0.00016574,2]
[350527402,1737947258322,-500.0,0.00016574,2]
[350527403,1737947258345,-500.0,0.00016574,2]
[350527404,1737947258367,-500.0,0.00016574,2]
[350527405,1737947258391,-500.0,0.00016574,2]
[350527406,1737947258413,-500.0,0.00016574,2]
[350527407,1737947258435,-500.0,0.00016574,2]
[350527408,1737947258459,-4095.39,0.00016574,2]
[350527409,1737947258482,-500.0,0.00016574,2]
[350527410,1737947258505,-502.4526243,0.00016574,2]
[350527411,1737947258527,-503.69783874,0.00016574,2]
[350527412,1737947258550,-500.0,0.00016574,2]
[350527413,1737947258572,-500.0,0.00016574,2]
[350527414,1737947258595,-501.49015266,0.00016574,2]
[350527415,1737947258620,-500.0,0.00016574,2]
[350527416,1737947258643,-500.0,0.00016574,2]
[350527417,1737947258667,-500.0,0.00016574,2]
[350527418,1737947258691,-501.23718737,0.00016574,2]
[350527419,1737947258714,-500.0,0.00016574,2]
[350527420,1737947258736,-500.85209057,0.00016574,2]
[350527421,1737947258765,-500.58247302,0.00016574,2]
[350527422,1737947258790,-500.0,0.00016574,2]
[350527423,1737947258814,-500.0,0.00016574,2]
[350527424,1737947258838,-500.0,0.00016574,2]
[350527425,1737947258861,-500.0,0.00016574,2]
[350527426,1737947258884,-500.0,0.00016574,2]
[350527427,1737947258906,-500.0,0.00016574,2]
[350527428,1737947258929,-500.0,0.00016574,2]
[350527429,1737947258950,-500.0,0.00016574,2]
[350527430,1737947258972,-500.0,0.00016574,2]
[350527431,1737947259019,-1812.24,0.00016574,2]
[350527432,1737947259045,-501.18175277,0.00016574,2]
[350527433,1737947259068,-500.0,0.00016574,2]
[350527434,1737947259091,-501.56098355,0.00016574,2]
[350527435,1737947259114,-500.0,0.00016574,2]
[350527436,1737947259137,-1386.83,0.00016574,2]
[350527437,1737947259160,-500.0,0.00016574,2]
[350527438,1737947259327,-500.0,0.00016574,2]
[350527439,1737947259350,-500.0,0.00016574,2]
[350527440,1737947259372,-500.0,0.00016574,2]
[350527441,1737947259394,-500.0,0.00016574,2]
[350527442,1737947259417,-500.0,0.00016574,2]
[350527443,1737947259439,-500.0,0.00016574,2]
[350527444,1737947259461,-504.40975819,0.00016574,2]
[350527445,1737947259483,-831.92,0.00016574,2]
[350527446,1737947259507,-503.00715418,0.00016574,2]
[350527447,1737947259530,-500.0,0.00016574,2]
[350527448,1737947259552,-500.0,0.00016574,2]
[350527449,1737947259572,-500.0,0.00016574,2]
[350527450,1737947259594,-503.2106741,0.00016574,2]
[350527451,1737947259614,-500.0,0.00016574,2]
[350527452,1737947259635,-500.0,0.00016574,2]
[350527453,1737947259657,-500.0,0.00016574,2]
[350527454,1737947259678,-507.62865722,0.00016574,2]
[350527455,1737947259700,-500.0,0.00016574,2]
[350527456,1737947259722,-500.0,0.00016574,2]
[350527457,1737947259746,-509.68242129,0.00016574,2]
[350527458,1737947259769,-500.0,0.00016574,2]
[350527459,1737947259790,-500.0,0.00016574,2]
[350527460,1737947259812,-500.0,0.00016574,2]
[350527461,1737947259833,-690.6,0.00016574,2]
[350527462,1737947259854,-500.0,0.00016574,2]
[350527463,1737947259877,-500.0,0.00016574,2]
[350527464,1737947259899,-500.0,0.00016574,2]
[350527465,1737947259922,-500.0,0.00016574,2]
[350527466,1737947259943,-500.0,0.00016574,2]
[350527467,1737947259964,-500.0,0.00016574,2]
[350527468,1737947259985,-500.0,0.00016574,2]
[350527469,1737947260013,-500.0,0.00016574,2]
[350527470,1737947260036,-501.05287188,0.00016574,2]
[350527471,1737947260060,-500.0,0.00016574,2]
[350527472,1737947260085,-500.0,0.00016574,2]
[350527473,1737947260108,-500.0,0.00016574,2]
[350527474,1737947260131,-503.7374197,0.00016574,2]
[350527475,1737947260153,-500.0,0.00016574,2]
[350527476,1737947260175,-500.0,0.00016574,2]
[350527477,1737947260198,-500.0,0.00016574,2]
[350527478,1737947260222,-616.61,0.00016574,2]
[350527479,1737947260244,-500.0,0.00016574,2]
[350527480,1737947260267,-503.00526443,0.00016574,2]
[350527481,1737947260289,-500.0,0.00016574,2]
[350527482,1737947260311,-500.0,0.00016574,2]
[350527483,1737947260334,-500.0,0.00016574,2]
[350527484,1737947260357,-500.0,0.00016574,2]
[350527485,1737947260380,-500.0,0.00016574,2]
[350527486,1737947260404,-1024.57,0.00016574,2]
[350527487,1737947260427,-500.0,0.00016574,2]
[350527488,1737947260448,-501.57866596,0.00016574,2]
[350527489,1737947260470,-170.76360481,0.00016574,2]
[350527490,1737947260492,-500.0,0.00016574,2]
[350527491,1737947260518,-500.0,0.00016574,2]
[350527492,1737947260540,-500.0,0.00016574,2]
[350527493,1737947260563,-500.0,0.00016574,2]
[350527494,1737947260586,-500.0,0.00016574,2]
[350527495,1737947260609,-500.0,0.00016574,2]
[350527496,1737947260632,-747.05,0.00016574,2]
[350527497,1737947260655,-500.0,0.00016574,2]
[350527498,1737947260678,-1667.45,0.00016574,2]
[350527499,1737947260701,-500.0,0.00016574,2]
[350527500,1737947260723,-500.0,0.00016574,2]
[350527501,1737947260747,-3170.2,0.00016574,2]
[350527502,1737947260773,-500.0,0.00016574,2]
[350527503,1737947260796,-500.0,0.00016574,2]
[350527504,1737947260818,-372.59155842,0.00016574,2]
[350527505,1737947260840,-500.0,0.00016574,2]
[350527506,1737947260865,-2086.89,0.00016574,2]
[350527507,1737947260888,-500.0,0.00016574,2]
[350527508,1737947260911,-500.0,0.00016574,2]
[350527509,1737947260933,-500.0,0.00016574,2]
[350527510,1737947260957,-500.0,0.00016574,2]
[350527511,1737947260981,-500.0,0.00016574,2]
[350527512,1737947261009,-500.0,0.00016574,2]
[350527513,1737947261034,-500.0,0.00016574,2]
[350527514,1737947261059,-500.0,0.00016574,2]
[350527515,1737947261086,-500.0,0.00016574,2]
[350527516,1737947261111,-3227.99,0.00016574,2]
[350527517,1737947261134,-500.0,0.00016574,2]
[350527518,1737947261158,-504.64048291,0.00016574,2]
[350527519,1737947261181,-500.0,0.00016574,2]
[350527520,1737947261205,-500.0,0.00016574,2]
[350527521,1737947261227,-500.0,0.00016574,2]
[350527522,1737947261250,-500.0,0.00016574,2]
[350527523,1737947261280,-500.0,0.00016574,2]
[350527524,1737947261307,-500.0,0.00016574,2]
[350527525,1737947261332,-500.0,0.00016574,2]
[350527526,1737947261358,-621.05,0.00016574,2]
[350527527,1737947261383,-500.0,0.00016574,2]
[350527528,1737947261410,-508.06899545,0.00016574,2]
[350527529,1737947261433,-500.0,0.00016574,2]
[350527530,1737947261457,-500.0,0.00016574,2]
[350527531,1737947261481,-500.0,0.00016574,2]
[350527532,1737947261505,-414.18996404,0.00016574,2]
[350527533,1737947261527,-500.0,0.00016574,2]
[350527534,1737947261554,-500.0,0.00016574,2]
[350527535,1737947261579,-1716.24,0.00016574,2]
[350527536,1737947261602,-500.0,0.00016574,2]
[350527537,1737947261625,-500.0,0.00016574,2]
[350527538,1737947261750,-500.0,0.00016574,2]
[350527539,1737947261777,-500.0,0.00016574,2]
[350527540,1737947261802,-500.0,0.00016574,2]
[350527541,1737947261826,-500.0,0.00016574,2]
[350527542,1737947261849,-502.97005234,0.00016574,2]
[350527543,1737947261873,-500.0,0.00016574,2]
[350527544,1737947261897,-500.0,0.00016574,2]
[350527545,1737947261921,-500.0,0.00016574,2]
[350527546,1737947261945,-500.0,0.00016574,2]
[350527547,1737947261969,-273.83313967,0.00016574,2]
[350527568,1737947436476,-8365.3101161,0.00015608,2]
[350527570,1737947436486,-306.753222,0.00015744,2]
[350527572,1737947436495,-6414.85507286,0.00016408,2]
[350527574,1737947436504,-173.5642137,0.00016474,2]
[350527575,1737947436513,-300.0,0.00016572,2]
[350527576,1737947436523,-3924.75,0.00016573,2]
[350527577,1737947436533,-500.0,0.00016573,2]
[350527578,1737947436542,-500.0,0.00016573,2]
[350527579,1737947436561,-1329.05,0.00016573,2]
[350527580,1737947436571,-500.0,0.00016573,2]
[350527581,1737947436580,-1736.15509005,0.00016573,2]
[350527582,1737947436591,-0.57490995,0.00016573,2]
[350527583,1737947436600,-797.26,0.00016573,2]
[350527584,1737947436609,-500.0,0.00016573,2]
[350527585,1737947436618,-500.0,0.00016573,2]
[350527586,1737947436627,-500.0,0.00016573,2]
[350527587,1737947436637,-661.82,0.00016573,2]
[350527588,1737947436646,-500.0,0.00016573,2]
[350527589,1737947436655,-500.0,0.00016573,2]
[350527590,1737947436664,-500.0,0.00016573,2]
[350527591,1737947436674,-500.0,0.00016573,2]
[350527592,1737947436683,-500.0,0.00016573,2]
[350527593,1737947436693,-500.0,0.00016573,2]
[350527594,1737947436702,-981.88,0.00016573,2]
[350527595,1737947436711,-590.92,0.00016573,2]
[350527596,1737947436721,-1770.45,0.00016573,2]
[350527597,1737947436731,-715.93,0.00016573,2]
[350527598,1737947436740,-500.0,0.00016573,2]
[350527599,1737947436750,-1597.97,0.00016573,2]
[350527600,1737947436759,-1000.0,0.00016573,7]
[350527601,1737947436769,-916.29,0.00016573,2]
[350527602,1737947436778,-3038.11,0.00016573,2]
[350527603,1737947436787,-500.0,0.00016573,2]
[350527604,1737947436796,-500.0,0.00016573,2]
[350527605,1737947436806,-500.0,0.00016573,2]
[350527606,1737947436815,-1034.33,0.00016573,2]
[350527607,1737947436824,-1999.94,0.00016573,2]
[350527608,1737947436833,-500.0,0.00016573,2]
[350527609,1737947436959,-500.0,0.00016573,2]
[350527610,1737947436969,-500.0,0.00016573,2]
[350527611,1737947436978,-500.0,0.00016573,2]
[350527612,1737947436988,-595.18,0.00016573,2]
[350527613,1737947436997,-500.0,0.00016573,2]
[350527614,1737947437006,-156.27412076,0.00016573,2]
[350527615,1737947437015,-1644.73,0.00016573,2]
[350527616,1737947437024,-500.0,0.00016573,2]
[350527617,1737947437037,-226.16686033,0.00016574,2]
[350527618,1737947437047,-978.78,0.00016574,2]
[350527619,1737947437056,-500.0,0.00016574,2]
[350527620,1737947437065,-500.0,0.00016574,2]
[350527621,1737947437075,-500.0,0.00016574,2]
[350527622,1737947437086,-500.0,0.00016574,2]
[350527623,1737947437096,-500.0,0.00016574,2]
[350527624,1737947437106,-500.0,0.00016574,2]
[350527625,1737947437116,-500.0,0.00016574,2]
[350527626,1737947437126,-500.0,0.00016574,2]
[350527627,1737947437138,-743.63,0.00016574,2]
[350527628,1737947437150,-500.0,0.00016574,2]
[350527629,1737947437159,-500.0,0.00016574,2]
[350527630,1737947437168,-500.0,0.00016574,2]
[350527631,1737947437177,-503.33458373,0.00016574,2]
[350527632,1737947437186,-500.0,0.00016574,2]
[350527633,1737947437195,-500.0,0.00016574,2]
[350527634,1737947437205,-500.0,0.00016574,2]
[350527635,1737947437214,-500.0,0.00016574,2]
[350527636,1737947437222,-500.0,0.00016574,2]
[350527637,1737947437231,-500.0,0.00016574,2]
[350527638,1737947437241,-581.3,0.00016574,2]
[350527639,1737947437250,-501.63413629,0.00016574,2]
[350527640,1737947437260,-500.73057561,0.00016574,2]
[350527641,1737947437268,-500.0,0.00016574,2]
[350527642,1737947437278,-500.0,0.00016574,2]
[350527643,1737947437287,-500.0,0.00016574,2]
[350527644,1737947437297,-500.0,0.00016574,2]
[350527645,1737947437306,-500.0,0.00016574,2]
[350527646,1737947437315,-500.0,0.00016574,2]
[350527647,1737947437324,-500.0,0.00016574,2]
[350527648,1737947437333,-500.0,0.00016574,2]
[350527649,1737947437342,-500.0,0.00016574,2]
[350527650,1737947437352,-500.0,0.00016574,2]
[350527651,1737947437361,-500.0,0.00016574,2]
[350527652,1737947437371,-500.0,0.00016574,2]
[350527653,1737947437380,-500.0,0.00016574,2]
[350527654,1737947437389,-500.0,0.00016574,2]
[350527655,1737947437398,-500.0,0.00016574,2]
[350527656,1737947437408,-500.0,0.00016574,2]
[350527657,1737947437417,-500.0,0.00016574,2]
[350527658,1737947437427,-429.84264532,0.00016574,2]
[350527659,1737947437436,-500.0,0.00016574,2]
[350527660,1737947437445,-500.0,0.00016574,2]
[350527661,1737947437454,-500.0,0.00016574,2]
[350527662,1737947437463,-500.0,0.00016574,2]
[350527663,1737947437473,-500.0,0.00016574,2]